bitfinex/quotes_BTCUSD_20240908
["timestamp","ask_amount","ask_price","bid_price","bid_amount"]
[1725832476287,0.02873584,54574.0,54572.0,0.1551]
[1725832476500,0.02873584,54574.0,54573.0,0.0676]
[1725832476952,0.02873584,54574.0,54573.0,1.182847]
[1725832477166,0.02873584,54574.0,54573.0,1.205847]
[1725832477378,0.05486729,54579.0,54578.0,0.732895]
[1725832477651,0.05486729,54581.0,54580.0,0.52982]
[1725832477870,0.01917251,54584.0,54583.0,0.236665]
[1725832479664,0.01917251,54584.0,54583.0,0.249665]
[1725832479880,0.01917251,54584.0,54583.0,0.261665]
[1725832480343,0.01917251,54584.0,54583.0,0.32759521]
[1725832481713,0.01917251,54584.0,54583.0,0.62072621]
[1725832483250,0.01917251,54584.0,54583.0,0.91385721]
[1725832484581,0.01917251,54584.0,54583.0,0.91358731]
[1725832484816,0.01917251,54584.0,54583.0,0.90158731]
[1725832485297,0.01917251,54584.0,54583.0,0.90058731]
[1725832485522,0.01917251,54584.0,54583.0,0.91358731]
[1725832485727,0.01917251,54584.0,54583.0,0.88858731]
[1725832485945,0.01917251,54584.0,54583.0,0.90258731]
[1725832486156,0.01917251,54584.0,54583.0,0.91658731]
[1725832486588,0.01917251,54584.0,54583.0,0.90258731]
[1725832488128,0.01917251,54584.0,54583.0,1.20971831]
[1725832488334,0.000815,54587.0,54586.0,0.876887]
[1725832489255,0.000815,54587.0,54586.0,0.899887]
[1725832489465,0.000815,54587.0,54586.0,1.193002]
[1725832489678,0.000815,54587.0,54586.0,0.913887]
[1725832489893,0.000815,54587.0,54586.0,0.899887]
[1725832490106,0.000815,54587.0,54586.0,0.912887]
[1725832490328,0.000815,54587.0,54586.0,0.926887]
[1725832491217,0.146526,54598.0,54591.0,0.1441]
[1725832491421,0.146526,54598.0,54594.0,0.146535]
[1725832492273,0.02872379,54601.0,54596.0,0.0638]
[1725832492478,0.000815,54604.0,54597.0,0.1007]
[1725832492681,0.000815,54604.0,54602.0,0.146514]
[1725832492890,0.000815,54604.0,54602.0,0.897072]
[1725832493740,0.000815,54604.0,54602.0,1.190101]
[1725832495066,0.000815,54604.0,54602.0,1.198101]
[1725832495314,0.000815,54604.0,54602.0,1.190101]
[1725832495527,0.000815,54604.0,54602.0,1.218101]
[1725832496380,0.000815,54604.0,54602.0,1.2178311]
[1725832497693,0.000815,54604.0,54602.0,1.2038311]
[1725832497897,0.000815,54604.0,54602.0,1.2178311]
[1725832498106,0.000815,54604.0,54602.0,1.2038311]
[1725832498313,0.000815,54604.0,54602.0,1.2178311]
[1725832498525,0.000815,54604.0,54602.0,1.1898311]
[1725832498952,0.000815,54604.0,54602.0,1.2178311]
[1725832504393,0.000815,54604.0,54602.0,1.21762146]
[1725832504813,0.000815,54604.0,54602.0,1.20362146]
[1725832505019,0.000815,54604.0,54602.0,1.18962146]
[1725832505224,0.000815,54604.0,54602.0,1.20362146]
[1725832505427,0.000815,54604.0,54602.0,1.21762146]
[1725832506267,0.000815,54604.0,54602.0,0.84399246]
[1725832506701,0.000815,54604.0,54602.0,0.82999246]
[1725832507146,0.000815,54604.0,54602.0,0.84399246]
[1725832507579,0.146493,54611.0,54606.0,0.146502]
[1725832508071,0.146493,54611.0,54607.0,0.146499]
[1725832508878,0.146487,54613.0,54607.0,0.146499]
[1725832509111,0.292966,54614.0,54607.0,0.146499]
[1725832509112,0.146488,54612.0,54607.0,0.146499]
[1725832509820,0.146488,54612.0,54607.0,0.159499]
[1725832510673,0.146488,54612.0,54607.0,0.170499]
[1725832510883,0.146488,54612.0,54607.0,0.157499]
[1725832511111,0.146488,54612.0,54607.0,0.168499]
[1725832512201,0.146488,54612.0,54607.0,0.022]
[1725832513267,0.292978,54612.0,54607.0,0.022]
[1725832513915,0.146495,54610.0,54607.0,0.022]
[1725832514572,0.146495,54610.0,54607.0,0.0214592]
[1725832515021,0.146496,54609.0,54607.0,0.0104592]
[1725832515230,0.146496,54609.0,54607.0,0.0244592]
[1725832515728,0.146496,54609.0,54607.0,0.014]
[1725832515958,0.146496,54609.0,54607.0,0.027]
[1725832516592,0.146496,54609.0,54607.0,0.014]
[1725832516803,0.146496,54609.0,54607.0,0.028]
[1725832517044,0.146496,54609.0,54607.0,0.014]
[1725832517469,0.146498,54608.0,54607.0,0.014]
[1725832517671,0.505795,54608.0,54607.0,0.028]
[1725832517886,0.798792,54608.0,54607.0,0.028]
[1725832518569,0.798792,54608.0,54607.0,0.014]
[1725832518782,0.798792,54608.0,54607.0,0.028]
[1725832519476,0.798792,54608.0,54607.0,0.014]
[1725832519703,0.798792,54608.0,54607.0,0.028]
[1725832520571,0.80758208,54608.0,54607.0,0.028]
[1725832522371,0.74128208,54608.0,54607.0,0.028]
[1725832524869,0.439495,54608.0,54607.0,0.028]
[1725832525318,0.31505839,54608.0,54607.0,0.028]
[1725832525764,0.60805539,54608.0,54607.0,0.028]
[1725832526908,0.60805539,54608.0,54607.0,0.02963]
[1725832527632,0.53225539,54608.0,54607.0,0.02963]
[1725832529325,0.52725539,54608.0,54607.0,0.02963]
[1725832531948,0.46715539,54608.0,54607.0,0.02963]
[1725832532173,0.82245239,54608.0,54607.0,0.02963]
[1725832532602,0.96833722,54608.0,54607.0,0.02963]
[1725832533252,1.02305728,54608.0,54607.0,0.02963]
[1725832533462,1.12305728,54608.0,54607.0,0.02963]
[1725832533881,1.06833722,54608.0,54607.0,0.02963]
[1725832534087,1.15041731,54608.0,54607.0,0.02963]
[1725832534515,1.06833722,54608.0,54607.0,0.02963]
[1725832534722,1.36133422,54608.0,54607.0,0.02963]
[1725832534953,1.44913226,54608.0,54607.0,0.02963]
[1725832535161,1.76380623,54608.0,54607.0,0.02963]
[1725832535372,1.65415715,54608.0,54607.0,0.02963]
[1725832535574,1.65415715,54608.0,54607.0,0.01563]
[1725832535812,1.79121156,54608.0,54607.0,0.02363]
[1725832536025,1.65415715,54608.0,54607.0,0.02363]
[1725832536460,1.65415715,54608.0,54607.0,0.00963]
[1725832536685,1.65415715,54608.0,54607.0,0.01763]
[1725832537128,1.65415715,54608.0,54607.0,0.00163]
[1725832537360,1.65415715,54608.0,54607.0,0.01463]
[1725832537587,1.12747728,54608.0,54607.0,0.00763]
[1725832538243,1.12747728,54608.0,54607.0,0.01263]
[1725832539840,1.12829228,54608.0,54607.0,0.01263]
[1725832540087,1.12829228,54608.0,54607.0,0.00763]
[1725832540284,1.12808877,54608.0,54607.0,0.00563]
[1725832540511,1.12808877,54608.0,54607.0,0.01063]
[1725832540956,1.12808877,54608.0,54607.0,0.00163]
[1725832541175,1.30387714,54608.0,54607.0,0.00763]
[1725832541400,1.30387714,54608.0,54607.0,0.00663]
[1725832542048,1.30387714,54608.0,54607.0,0.00163]
[1725832543186,1.30387714,54608.0,54607.0,0.00563]
[1725832543390,1.30387714,54608.0,54607.0,0.01163]
[1725832543597,1.30387714,54608.0,54607.0,0.00563]
[1725832544030,1.30387714,54608.0,54607.0,0.01063]
[1725832546203,1.30387714,54608.0,54607.0,0.00663]
[1725832546492,1.30387714,54608.0,54607.0,0.00563]
[1725832546718,1.30387714,54608.0,54607.0,0.01063]
[1725832548676,1.33259607,54608.0,54607.0,0.01063]
[1725832555254,1.33187365,54608.0,54607.0,0.01063]
[1725832560417,1.33237045,54608.0,54607.0,0.01063]
[1725832562030,1.30365152,54608.0,54607.0,0.01063]
[1725832563638,1.24135152,54608.0,54607.0,0.01063]
[1725832569949,1.53434852,54608.0,54607.0,0.01063]
[1725832570184,1.24135152,54608.0,54607.0,0.01063]
[1725832570622,1.49385568,54608.0,54607.0,0.01063]
[1725832570835,1.9678434,54608.0,54607.0,0.01063]
[1725832571282,2.0502434,54608.0,54607.0,0.01063]
[1725832571919,2.0502434,54608.0,54607.0,0.00663]
[1725832572369,2.0502434,54608.0,54607.0,0.00963]
[1725832572794,2.0502434,54608.0,54607.0,0.00163]
[1725832573003,2.0502434,54608.0,54607.0,0.00463]
[1725832573229,2.0502434,54608.0,54607.0,0.00163]
[1725832573428,2.3442404,54608.0,54607.0,0.00163]
[1725832573638,2.0532434,54608.0,54607.0,0.00163]
[1725832574304,2.0512434,54608.0,54607.0,0.00163]
[1725832574736,2.0522434,54608.0,54607.0,0.00263]
[1725832575172,2.0542434,54608.0,54607.0,0.00263]
[1725832575383,2.04599616,54608.0,54607.0,0.00263]
[1725832575605,2.04399616,54608.0,54607.0,0.00263]
[1725832575814,2.04599616,54608.0,54607.0,0.00263]
[1725832576020,2.04399616,54608.0,54607.0,0.00163]
[1725832576224,2.04799616,54608.0,54607.0,0.00163]
[1725832576454,2.04599616,54608.0,54607.0,0.00163]
[1725832576654,2.04799616,54608.0,54607.0,0.00263]
[1725832576876,2.05199616,54608.0,54607.0,0.00363]
[1725832577112,2.04399616,54608.0,54607.0,0.00263]
[1725832577347,2.04799616,54608.0,54607.0,0.00263]
[1725832577786,2.04599616,54608.0,54607.0,0.00163]
[1725832577999,1.78780779,54608.0,54607.0,0.00163]
[1725832578214,1.79080779,54608.0,54607.0,0.00163]
[1725832578698,1.78832643,54608.0,54607.0,0.00163]
[1725832580208,2.08132343,54608.0,54607.0,0.00163]
[1725832580428,2.09132343,54608.0,54607.0,0.00163]
[1725832580634,2.46151434,54608.0,54607.0,0.00163]
[1725832580861,2.2763065,54608.0,54607.0,0.00163]
[1725832581323,2.2783065,54608.0,54607.0,0.00163]
[1725832581527,2.46149207,54608.0,54607.0,0.00163]
[1725832581967,2.3600065,54608.0,54607.0,0.00163]
[1725832592510,2.04668197,54608.0,54607.0,0.00163]
[1725832593610,2.03922545,54608.0,54607.0,0.00163]
[1725832593842,2.33222245,54608.0,54607.0,0.00163]
[1725832594485,2.2207708,54608.0,54607.0,0.00163]
[1725832595996,2.2227708,54608.0,54607.0,0.00163]
[1725832596931,2.2027708,54608.0,54607.0,0.00163]
[1725832597157,2.2227708,54608.0,54607.0,0.00163]
[1725832598709,2.22282192,54608.0,54607.0,0.00163]
[1725832600772,2.2744787,54608.0,54607.0,0.00163]
[1725832601018,2.44477305,54608.0,54607.0,0.00163]
[1725832603085,2.62985365,54608.0,54607.0,0.00163]
[1725832603833,2.44477305,54608.0,54607.0,0.00163]
[1725832605487,1.67558238,54608.0,54607.0,0.06223]
[1725832605705,1.69968042,54608.0,54607.0,0.13933]
[1725832605936,0.47906052,54608.0,54607.0,0.13933]
[1725832606166,0.20327416,54608.0,54607.0,0.13933]
[1725832606415,0.14494105,54608.0,54607.0,0.578833]
[1725832606634,0.08227815,54610.0,54609.0,0.292991]
[1725832606858,0.0548595,54614.0,54613.0,0.146485]
[1725832607067,0.08227815,54616.0,54614.0,0.1377]
[1725832607068,0.0548595,54616.0,54614.0,0.1377]
[1725832607296,0.0548595,54616.0,54615.0,0.1377]
[1725832607519,0.0556745,54617.0,54615.0,0.1377]
[1725832607804,0.0556745,54617.0,54614.0,0.146482]
[1725832608225,0.0556745,54617.0,54615.0,0.0606]
[1725832608441,0.000815,54617.0,54616.0,0.0771]
[1725832608660,0.17581197,54617.0,54616.0,0.0771]
[1725832608912,0.28994654,54617.0,54616.0,0.0771]
[1725832609339,0.23508704,54617.0,54616.0,0.0771]
[1725832609779,0.52803604,54617.0,54616.0,0.0771]
[1725832609988,0.52803604,54617.0,54616.0,0.0891]
[1725832610443,0.52803604,54617.0,54616.0,0.1011]
[1725832610665,0.52803604,54617.0,54616.0,0.0771]
[1725832611261,0.52803604,54617.0,54616.0,0.0861]
[1725832611736,0.52803604,54617.0,54616.0,0.0981]
[1725832611952,0.52803604,54617.0,54616.0,0.0861]
[1725832613027,0.52803604,54617.0,54616.0,0.0771]
[1725832613473,0.52803604,54617.0,54616.0,0.0981]
[1725832613688,0.52803604,54617.0,54616.0,0.0891]
[1725832613903,0.52803604,54617.0,54616.0,0.1011]
[1725832616282,0.82098504,54617.0,54616.0,0.1011]
[1725832616514,0.733187,54617.0,54616.0,0.1011]
[1725832632030,0.794587,54617.0,54616.0,0.024]
[1725832632706,0.733187,54617.0,54616.0,0.024]
[1725832638995,0.439455,54613.0,54612.0,0.00163]
[1725832639972,0.732425,54613.0,54612.0,0.00163]
[1725832640184,0.439455,54613.0,54612.0,0.00163]
[1725832640820,0.13100688,54613.0,54612.0,0.00163]
[1725832641039,0.13100688,54613.0,54612.0,0.01563]
[1725832641255,0.42397688,54613.0,54612.0,0.01563]
[1725832641679,0.42497688,54613.0,54612.0,0.02963]
[1725832644777,0.71794688,54613.0,54612.0,0.02963]
[1725832644997,0.42497688,54613.0,54612.0,0.02963]
[1725832645668,0.76052607,54613.0,54612.0,0.02963]
[1725832648504,0.46755607,54613.0,54612.0,0.02963]
[1725832649182,0.146495,54610.0,54608.0,0.0811]
[1725832649957,0.146495,54609.0,54608.0,0.0811]
[1725832650579,0.146495,54609.0,54608.0,0.0951]
[1725832650790,0.146495,54609.0,54608.0,0.1091]
[1725832651000,0.146495,54609.0,54608.0,0.0951]
[1725832651206,0.49427723,54609.0,54608.0,0.0951]
[1725832651414,0.20128623,54609.0,54608.0,0.0951]
[1725832651629,1.03956524,54609.0,54608.0,0.0811]
[1725832652052,0.92962008,54609.0,54608.0,0.0811]
[1725832652263,0.93062008,54609.0,54608.0,0.0871]
[1725832652461,1.04056524,54609.0,54608.0,0.0871]
[1725832652953,1.03956524,54609.0,54608.0,0.0811]
[1725832653178,1.04156524,54609.0,54608.0,0.0811]
[1725832653386,1.04056524,54609.0,54608.0,0.0811]
[1725832653595,1.06597183,54609.0,54608.0,0.0811]
[1725832653860,1.06597183,54609.0,54607.0,0.00163]
[1725832653861,0.732492,54608.0,54607.0,0.00163]
[1725832654088,0.45754727,54608.0,54607.0,0.00163]
[1725832654331,0.94478202,54608.0,54607.0,0.00163]
[1725832654552,0.94428017,54608.0,54607.0,0.00163]
[1725832654984,0.65128317,54608.0,54607.0,0.14133]
[1725832656070,0.65128317,54608.0,54607.0,0.14433]
[1725832656071,0.65228317,54608.0,54607.0,0.14433]
[1725832656491,0.45854727,54608.0,54607.0,0.14433]
[1725832656708,0.45854727,54608.0,54607.0,0.08193]
[1725832657141,0.45954727,54608.0,54607.0,0.08393]
[1725832657367,0.53233373,54608.0,54607.0,0.08393]
[1725832658671,0.61471054,54608.0,54607.0,0.08393]
[1725832659100,0.53233373,54608.0,54607.0,0.08393]
[1725832661634,0.61467763,54608.0,54607.0,0.08393]
[1725832662522,0.54189117,54608.0,54607.0,0.08393]
[1725832662739,0.54187023,54608.0,54607.0,0.08393]
[1725832664033,0.38050682,54608.0,54607.0,0.08393]
[1725832664260,0.78326791,54608.0,54607.0,0.08393]
[1725832666526,0.78382784,54608.0,54607.0,0.08393]
[1725832671217,0.78199662,54608.0,54607.0,0.08393]
[1725832671424,0.78211031,54608.0,54607.0,0.08393]
[1725832673915,0.146502,54607.0,54605.0,0.0661]
[1725832674130,0.05487495,54606.0,54605.0,0.0661]
[1725832674350,0.22881596,54607.0,54605.0,0.0661]
[1725832675466,0.22981596,54607.0,54605.0,0.0701]
[1725832676531,0.23081596,54607.0,54605.0,0.0701]
[1725832677000,0.23081596,54607.0,54605.0,0.004]
[1725832677001,0.146504,54606.0,54605.0,0.004]
[1725832677290,0.08431396,54607.0,54605.0,0.004]
[1725832677730,0.08331396,54607.0,54604.0,0.0661]
[1725832677946,0.05487201,54605.0,54604.0,0.0661]
[1725832680081,0.05587201,54605.0,54604.0,0.0661]
[1725832680574,0.002,54605.0,54604.0,0.0671]
[1725832682322,0.002,54605.0,54604.0,0.213609]
[1725832685394,0.21637232,54605.0,54604.0,0.213609]
[1725832685634,0.32611512,54605.0,54604.0,0.213609]
[1725832686958,0.32611512,54605.0,54604.0,0.506627]
[1725832691491,0.32660854,54605.0,54604.0,0.506627]
[1725832691966,0.32660854,54605.0,54604.0,0.508257]
[1725832694952,0.32685676,54605.0,54604.0,0.801275]
[1725832695165,0.32685676,54605.0,54604.0,0.881075]
[1725832695821,0.32730808,54605.0,54604.0,0.881075]
[1725832705038,0.33385847,54605.0,54604.0,0.881075]
[1725832708115,0.1371507,54606.0,54605.0,0.732532]
[1725832708116,0.08228263,54606.0,54605.0,0.732532]
[1725832708337,0.08309763,54607.0,54606.0,0.146504]
[1725832709411,0.08309763,54607.0,54606.0,0.438512]
[1725832709615,0.08409763,54607.0,54606.0,0.438512]
[1725832709995,0.08407005,54607.0,54606.0,0.438512]
[1725832710205,0.08507005,54607.0,54606.0,0.439512]
[1725832712788,0.08507005,54607.0,54606.0,0.001]
[1725832712789,0.14997005,54607.0,54606.0,0.001]
[1725832713029,0.10098002,54607.0,54606.0,0.001]
[1725832713260,0.067715,54607.0,54606.0,0.001]
[1725832713510,0.587718,54607.0,54606.0,0.001]
[1725832713754,1.06851804,54607.0,54606.0,0.001]
[1725832713990,1.06851804,54607.0,54604.0,0.00163]
[1725832713991,0.877932,54605.0,54604.0,0.00163]
[1725832714198,1.170945,54605.0,54604.0,0.00163]
[1725832714407,1.25573784,54605.0,54604.0,0.00163]
[1725832715950,1.25673784,54605.0,54604.0,0.00263]
[1725832716179,1.25573784,54605.0,54604.0,0.00163]
[1725832716395,1.40919018,54605.0,54604.0,0.00263]
[1725832716602,1.40919018,54605.0,54604.0,0.00463]
[1725832716856,1.40919018,54605.0,54604.0,0.00363]
[1725832717059,1.41019018,54605.0,54604.0,0.00363]
[1725832717262,1.40919018,54605.0,54604.0,0.00163]
[1725832717477,1.71220318,54605.0,54604.0,0.00163]
[1725832718121,1.87671329,54605.0,54604.0,0.00163]
[1725832718557,1.71420318,54605.0,54604.0,0.00163]
[1725832719069,1.71220318,54605.0,54604.0,0.00163]
[1725832719288,1.71320318,54605.0,54604.0,0.00163]
[1725832719721,1.72120318,54605.0,54604.0,0.00163]
[1725832720359,1.72820318,54605.0,54604.0,0.00163]
[1725832720574,1.71920318,54605.0,54604.0,0.00163]
[1725832720786,1.71220318,54605.0,54604.0,0.00163]
[1725832721004,1.71920318,54605.0,54604.0,0.00163]
[1725832721228,1.72120318,54605.0,54604.0,0.00163]
[1725832721665,1.71920318,54605.0,54604.0,0.00163]
[1725832722314,1.72720318,54605.0,54604.0,0.00163]
[1725832723184,1.92377127,54605.0,54604.0,0.00163]
[1725832724516,2.16111394,54605.0,54604.0,0.00163]
[1725832724731,2.15111394,54605.0,54604.0,0.00163]
[1725832724967,2.42804127,54605.0,54604.0,0.00163]
[1725832725442,2.42804127,54605.0,54602.0,0.00163]
[1725832725443,1.25618204,54603.0,54602.0,0.00163]
[1725832725659,1.55269408,54603.0,54602.0,0.00163]
[1725832726809,1.56269408,54603.0,54602.0,0.00163]
[1725832728154,1.17687204,54603.0,54602.0,0.00163]
[1725832728388,0.87265011,54603.0,54602.0,0.00163]
[1725832728615,0.88265011,54603.0,54602.0,0.00163]
[1725832728837,0.87765011,54603.0,54602.0,0.00163]
[1725832729270,0.87265011,54603.0,54602.0,0.00163]
[1725832729479,0.87665011,54603.0,54602.0,0.00163]
[1725832729723,1.17367411,54603.0,54602.0,0.00163]
[1725832729930,1.16567411,54603.0,54602.0,0.00163]
[1725832730145,1.16567411,54603.0,54602.0,0.00263]
[1725832731474,1.02907204,54603.0,54602.0,0.00263]
[1725832731931,1.16567411,54603.0,54602.0,0.00263]
[1725832732592,1.02907204,54603.0,54602.0,0.00263]
[1725832732799,1.02907204,54603.0,54602.0,0.00163]
[1725832733033,1.16567411,54603.0,54602.0,0.00163]
[1725832733241,1.16567411,54603.0,54602.0,0.00263]
[1725832733242,1.33033467,54603.0,54602.0,0.00263]
[1725832733450,1.33033467,54603.0,54598.0,0.0782]
[1725832733451,0.146526,54598.0,54595.0,0.0624]
[1725832733658,0.05462984,54597.0,54595.0,0.0624]
[1725832734277,0.05462985,54597.0,54595.0,0.0624]
[1725832734694,0.34767343,54599.0,54595.0,0.0624]
[1725832734938,0.146528,54597.0,54595.0,0.0624]
[1725832735088,0.147528,54597.0,54595.0,0.0624]
[1725832735667,0.001,54597.0,54595.0,0.0624]
[1725832736371,0.147528,54597.0,54595.0,0.0624]
[1725832736682,0.148528,54597.0,54595.0,0.0644]
[1725832739668,0.002,54597.0,54595.0,0.0644]
[1725832740078,0.148528,54597.0,54595.0,0.0644]
[1725832740273,0.002,54597.0,54595.0,0.0644]
[1725832740472,0.002,54597.0,54596.0,0.14653]
[1725832740726,0.001,54597.0,54596.0,0.504891]
[1725832740877,0.05464645,54601.0,54598.0,0.0653]
[1725832741079,0.05464645,54601.0,54598.0,0.211825]
[1725832741301,0.05464645,54601.0,54598.0,0.210825]
[1725832741948,0.05464645,54601.0,54598.0,0.208825]
[1725832742176,0.146513,54603.0,54598.0,0.208825]
[1725832742177,0.20115945,54603.0,54598.0,0.208825]
[1725832742395,0.001,54601.0,54600.0,0.14652]
[1725832742865,0.002,54601.0,54600.0,0.14652]
[1725832743295,0.001,54601.0,54600.0,0.43956]
[1725832743510,0.002,54601.0,54600.0,0.14852]
[1725832743715,0.001,54601.0,54600.0,0.14852]
[1725832743929,0.001,54601.0,54600.0,0.14952]
[1725832744150,0.002,54601.0,54600.0,0.14952]
[1725832744350,0.002,54601.0,54600.0,0.51836]
[1725832744801,0.002,54601.0,54600.0,0.22532]
[1725832745254,0.002,54601.0,54600.0,0.29062]
[1725832745471,0.002,54601.0,54600.0,0.88036272]
[1725832745693,0.002,54601.0,54600.0,0.8767]
[1725832746142,0.002,54601.0,54600.0,1.19274]
[1725832747256,0.001,54601.0,54600.0,1.19174]
[1725832747457,0.001,54601.0,54600.0,1.19374]
[1725832747668,0.002,54601.0,54600.0,1.19274]
[1725832747883,0.002,54601.0,54600.0,1.19174]
[1725832748090,0.001,54601.0,54600.0,1.18974]
[1725832748296,0.001,54601.0,54600.0,1.19774]
[1725832748297,0.002,54601.0,54600.0,1.19774]
[1725832748720,0.003,54601.0,54600.0,1.19974]
[1725832748941,0.002,54601.0,54600.0,1.19174]
[1725832749149,0.003,54601.0,54600.0,1.19974]
[1725832749597,0.002,54601.0,54600.0,1.19174]
[1725832750019,0.001,54601.0,54600.0,1.20374]
[1725832750263,0.002,54601.0,54600.0,1.21074]
[1725832750719,0.002,54601.0,54600.0,1.20374]
[1725832750932,0.003,54601.0,54600.0,1.21674]
[1725832755402,0.003815,54601.0,54600.0,1.21674]
[1725832756307,0.000815,54601.0,54600.0,1.18974]
[1725832756526,0.001815,54601.0,54600.0,1.19674]
[1725832756952,0.001815,54601.0,54600.0,1.18974]
[1725832757221,0.002815,54601.0,54600.0,1.19674]
[1725832757435,0.003815,54601.0,54600.0,1.20474]
[1725832758501,0.002815,54601.0,54600.0,1.19674]
[1725832758925,0.003815,54601.0,54600.0,1.20474]
[1725832761607,0.003815,54601.0,54600.0,0.45456]
[1725832761834,0.003815,54601.0,54600.0,0.7476]
[1725832763900,0.00881338,54611.0,54600.0,0.30804]
[1725832764108,0.0765,54607.0,54603.0,0.14651]
[1725832766937,0.1375,54607.0,54603.0,0.15551]
[1725832767625,0.139315,54607.0,54603.0,0.16551]
[1725832770904,0.285816,54607.0,54603.0,0.16551]
[1725832775267,0.146509,54604.0,54603.0,0.019]
[1725832776344,0.146509,54604.0,54603.0,0.01]
[1725832776526,0.146509,54604.0,54603.0,0.009]
[1725832776765,0.147509,54604.0,54603.0,0.009]
[1725832777009,0.148509,54604.0,54603.0,0.018]
[1725832778151,0.002,54604.0,54603.0,0.018]
[1725832779189,0.002815,54604.0,54603.0,0.018]
[1725832785530,0.05759198,54604.0,54603.0,0.018]
[1725832787977,0.0576614,54604.0,54603.0,0.018]
[1725832788193,0.08498047,54604.0,54603.0,0.018]
[1725832790378,0.002815,54604.0,54603.0,0.018]
[1725832790728,0.20061119,54604.0,54603.0,0.018]
[1725832790957,0.20061119,54604.0,54603.0,0.01963]
[1725832791183,0.11236896,54604.0,54603.0,0.01963]
[1725832791336,0.31016515,54604.0,54603.0,0.01963]
[1725832792226,0.20061119,54604.0,54603.0,0.01963]
[1725832795305,0.20061119,54604.0,54603.0,0.166142]
[1725832795514,0.20061119,54604.0,54603.0,0.01963]
[1725832797020,0.20061119,54604.0,54602.0,0.146513]
[1725832797021,0.3104692,54604.0,54602.0,0.146513]
[1725832797255,0.11267301,54604.0,54602.0,0.146513]
[1725832798366,0.11067301,54604.0,54602.0,0.146513]
[1725832798892,0.11267301,54604.0,54602.0,0.156513]
[1725832799484,0.11267301,54604.0,54602.0,0.155513]
[1725832799655,0.11167301,54604.0,54602.0,0.155513]
[1725832799834,0.11267301,54604.0,54602.0,0.156513]
[1725832800269,0.05334345,54603.0,54598.0,0.294677]
[1725832800502,0.000815,54604.0,54603.0,0.01]
[1725832800711,0.000815,54604.0,54603.0,1.22854603]
[1725832800712,0.001815,54604.0,54603.0,1.22854603]
[1725832800913,0.000815,54609.0,54608.0,0.551695]
[1725832801124,0.000815,54609.0,54608.0,1.64279272]
[1725832801336,0.000815,54612.0,54611.0,1.22633104]
[1725832801549,0.000815,54612.0,54611.0,1.94901917]
[1725832801779,0.000815,54612.0,54611.0,1.76002839]
[1725832801984,0.000815,54612.0,54611.0,1.76102839]
[1725832802190,0.000815,54612.0,54611.0,1.76002839]
[1725832802399,0.000815,54612.0,54611.0,1.70511204]
[1725832802605,0.000815,54612.0,54611.0,1.617314]
[1725832802892,0.000815,54612.0,54611.0,1.71611204]
[1725832802893,0.001815,54612.0,54611.0,1.71611204]
[1725832803486,0.000815,54612.0,54611.0,1.70611204]
[1725832803780,0.001815,54612.0,54611.0,1.71511204]
[1725832804014,0.002815,54612.0,54611.0,1.71611204]
[1725832804212,0.001815,54612.0,54611.0,1.71511204]
[1725832804375,0.001815,54612.0,54611.0,1.71611204]
[1725832804580,0.002815,54612.0,54611.0,1.71711204]
[1725832804824,0.000815,54612.0,54611.0,1.305333]
[1725832805027,0.000815,54612.0,54611.0,1.216333]
[1725832805251,0.002815,54612.0,54611.0,0.924352]
[1725832805476,0.002815,54612.0,54611.0,0.934352]
[1725832805688,0.001815,54612.0,54611.0,1.216333]
[1725832806097,0.001815,54612.0,54611.0,1.227333]
[1725832806098,0.002815,54612.0,54611.0,1.227333]
[1725832806309,0.002815,54612.0,54611.0,1.236333]
[1725832806518,0.001815,54612.0,54611.0,1.225333]
[1725832806751,0.002815,54612.0,54611.0,1.238333]
[1725832806977,0.001815,54612.0,54611.0,1.529314]
[1725832807425,0.002815,54612.0,54611.0,1.531314]
[1725832807697,0.001815,54612.0,54611.0,1.629314]
[1725832807910,0.002815,54612.0,54611.0,1.631314]
[1725832808149,0.002815,54612.0,54611.0,1.629314]
[1725832808361,0.002815,54612.0,54611.0,1.631314]
[1725832808584,0.002815,54612.0,54611.0,1.62906293]
[1725832809026,0.003815,54612.0,54611.0,1.64006293]
[1725832809480,0.002815,54612.0,54611.0,1.62906293]
[1725832809686,0.001815,54612.0,54611.0,1.63806293]
[1725832810121,0.001815,54612.0,54611.0,1.62906293]
[1725832810358,0.001815,54612.0,54611.0,1.62706293]
[1725832810619,0.003815,54612.0,54611.0,1.93304393]
[1725832811316,0.001815,54612.0,54611.0,1.93104393]
[1725832811751,0.001815,54612.0,54611.0,1.92104393]
[1725832811977,0.002815,54612.0,54611.0,1.9319778]
[1725832812194,0.002815,54612.0,54611.0,1.9329778]
[1725832812675,0.000815,54617.0,54611.0,1.9329778]
[1725832812676,0.00081,54642.0,54641.0,0.80445]
[1725832812869,0.00081,54642.0,54641.0,1.22700191]
[1725832813133,0.0804,54663.0,54662.0,0.43906]
[1725832813357,0.0804,54663.0,54662.0,0.731767]
[1725832814007,0.0804,54663.0,54658.0,0.292728]
[1725832814217,0.0804,54663.0,54652.0,0.291758]
[1725832814218,0.0652,54659.0,54652.0,0.291758]
[1725832814470,0.0783,54658.0,54654.0,0.292749]
[1725832814683,0.0783,54658.0,54654.0,0.146374]
[1725832814887,0.0783,54658.0,54654.0,0.292748]
[1725832815113,0.0783,54658.0,54656.0,0.146368]
[1725832815338,0.0783,54658.0,54653.0,0.023]
[1725832815576,0.0783,54658.0,54655.0,0.146371]
[1725832815806,0.0783,54658.0,54648.0,0.292778]
[1725832815807,0.001,54657.0,54648.0,0.292778]
[1725832816019,0.001,54657.0,54652.0,0.146378]
[1725832816233,0.001,54657.0,54656.0,0.002]
[1725832816686,0.001,54657.0,54652.0,0.146378]
[1725832817106,0.001,54657.0,54654.0,0.004]
[1725832817317,0.001,54651.0,54650.0,0.146384]
[1725832817530,0.001,54651.0,54649.0,0.023]